bitfinex/quotes_ETHUSD_20240927
["timestamp","ask_amount","ask_price","bid_price","bid_amount"]
[1727405225238,0.07267485,2627.6,2627.4,4.72947886]
[1727405225604,0.8052,2627.8,2627.4,4.72947886]
[1727405226122,0.07270886,2627.7,2627.4,4.72947886]
[1727405226640,0.8052,2627.8,2627.4,4.72947886]
[1727405227040,0.07270886,2627.7,2627.4,4.72947886]
[1727405227518,0.8052,2627.8,2627.4,4.72947886]
[1727405227715,0.8052,2627.8,2627.5,0.91901442]
[1727405228041,0.07270886,2627.7,2627.4,4.72947886]
[1727405228231,0.8052,2627.8,2627.4,4.72947886]
[1727405228403,0.07267485,2627.6,2627.4,4.72947886]
[1727405228604,0.8052,2627.8,2627.5,0.93346675]
[1727405228832,0.07270886,2627.7,2627.4,4.72947886]
[1727405229213,0.8052,2627.8,2627.4,4.72947886]
[1727405229419,0.07270886,2627.7,2627.4,4.72947886]
[1727405229706,0.07270886,2627.7,2627.5,0.91904678]
[1727405230036,0.8052,2627.8,2627.4,4.72947886]
[1727405230442,0.07270886,2627.7,2627.4,0.92347886]
[1727405230745,0.8052,2627.8,2627.4,0.92347886]
[1727405231245,0.07270886,2627.7,2627.4,0.92347886]
[1727405231611,0.8052,2627.8,2627.4,0.92347886]
[1727405231806,0.07270886,2627.7,2627.3,4.60518864]
[1727405232020,0.07270886,2627.7,2627.4,2.29849361]
[1727405232210,0.8052,2627.8,2627.3,8.41126864]
[1727405232406,0.8052,2627.8,2627.4,0.91941242]
[1727405232407,0.07270886,2627.7,2627.4,0.91941242]
[1727405232719,0.8052,2627.8,2627.3,3.80607]
[1727405232921,0.8052,2627.8,2627.4,4.7253535]
[1727405233121,0.07270886,2627.7,2627.4,3.80595]
[1727405233311,0.07270886,2627.7,2627.5,0.91939067]
[1727405233511,0.8052,2627.8,2627.4,3.80595]
[1727405233735,0.8052,2627.8,2627.5,0.91936776]
[1727405234047,0.0726951,2627.7,2627.6,0.91933308]
[1727405234434,3.80518,2628.0,2627.5,4.62978]
[1727405234637,0.07268134,2627.7,2627.5,4.62978]
[1727405234825,3.80518,2628.0,2627.6,0.57782214]
[1727405235141,0.07268861,2627.6,2627.5,4.62978]
[1727405235445,0.07268861,2627.6,2627.5,5.54915138]
[1727405235645,4.57947,2628.1,2627.5,6.92819747]
[1727405235847,4.57947,2628.1,2627.6,0.91937138]
[1727405236143,4.57947,2628.1,2627.5,4.62978]
[1727405236752,0.0728109,2628.0,2627.5,4.62978]
[1727405236948,0.0728109,2628.0,2627.5,5.77321679]
[1727405237322,0.0728109,2628.0,2627.6,0.91937398]
[1727405237645,0.0728109,2628.0,2627.5,5.77321679]
[1727405237851,0.0728109,2628.0,2627.6,0.91935178]
[1727405238049,0.0728109,2628.0,2627.6,3.80565]
[1727405238259,0.0728109,2628.0,2627.7,0.5849092]
[1727405243223,0.0728109,2628.0,2627.6,3.80565]
[1727405248161,0.0728109,2628.0,2627.5,5.77319679]
[1727405248458,0.0728109,2628.0,2627.6,0.92130978]
[1727405248658,0.0728109,2628.0,2627.5,5.77319679]
[1727405248957,0.0728109,2628.0,2627.6,0.92130849]
[1727405249261,0.0728109,2628.0,2627.5,0.8239]
[1727405250059,3.8779809,2628.0,2627.5,0.8239]
[1727405250416,0.8267,2627.9,2627.4,3.806]
[1727405250719,0.0727254,2627.8,2627.4,4.84227566]
[1727405251748,0.0727254,2627.8,2627.5,0.92138284]
[1727405251947,0.0727254,2627.8,2627.4,4.84227566]
[1727405252187,0.0727254,2627.8,2627.5,0.92137715]
[1727405252364,0.0727254,2627.8,2627.4,4.84227566]
[1727405252563,0.0727254,2627.8,2627.5,1.56081859]
[1727405252863,0.0727254,2627.8,2627.5,4.44516943]
[1727405254390,0.07267762,2627.7,2627.5,4.44516943]
[1727405254588,0.8267,2627.9,2627.5,4.44516943]
[1727405254799,0.0729539,2627.8,2627.5,4.44516943]
[1727405255091,0.8267,2627.9,2627.6,0.62805637]
[1727405255456,0.07268411,2627.8,2627.6,0.62805637]
[1727405258476,0.07268411,2627.8,2627.7,7.73848455]
[1727405258695,0.8267,2628.6,2628.2,4.55756]
[1727405258897,4.63101,2628.6,2628.0,4.55786]
[1727405259064,0.06798923,2628.5,2628.0,4.55786]
[1727405259489,0.06798923,2628.5,2628.1,0.455786]
[1727405260105,3.87246923,2628.5,2627.9,1.38217727]
[1727405260409,0.8267,2628.4,2627.8,3.88143414]
[1727405260610,0.8267,2628.4,2627.9,1.46470456]
[1727405260769,0.06831616,2628.3,2627.9,0.54338922]
[1727405261486,0.06831616,2628.3,2627.9,4.34859922]
[1727405264368,0.06831616,2628.3,2627.9,3.80521]
[1727405264803,0.06831616,2628.3,2628.0,3.88112822]
[1727405264968,0.06831616,2628.3,2628.0,3.88112392]
[1727405265609,0.06831616,2628.3,2628.0,3.80503]
[1727405266072,0.06831616,2628.3,2628.0,3.88112396]
[1727405266913,0.06831616,2628.3,2628.0,3.80503]
[1727405267112,0.06831616,2628.3,2628.0,4.7117729]
[1727405267610,0.06831616,2628.3,2628.0,0.98283658]
[1727405267916,0.06831616,2628.3,2628.2,3.80488]
[1727405270010,0.8267,2628.7,2628.2,3.80488]
[1727405270236,0.0687416,2628.6,2628.2,3.80488]
[1727405270440,0.8267,2628.7,2628.3,0.76859896]
[1727405270749,0.06851827,2628.6,2628.2,3.80488]
[1727405271249,0.8267,2628.7,2628.2,3.80488]
[1727405271754,0.06850451,2628.6,2628.2,3.80488]
[1727405276055,0.06850451,2628.6,2628.3,0.07608853]
[1727405276372,0.06850451,2628.6,2628.4,3.80456]
[1727405277310,0.06850451,2628.6,2628.3,1.4166659]
[1727405277518,0.06850451,2628.6,2628.3,5.14521139]
[1727405278391,0.06850451,2628.6,2628.3,1.34058139]
[1727405278596,0.06850451,2628.6,2628.3,5.14526139]
[1727405278768,0.06850451,2628.6,2628.4,0.90261259]
[1727405279903,0.06850451,2628.6,2628.2,3.80478]
[1727405280603,0.06850451,2628.6,2628.0,4.7117929]
[1727405280892,0.7639,2628.5,2628.0,3.80505]
[1727405281282,0.0686498,2628.4,2628.0,3.80505]
[1727405281512,0.0686498,2628.4,2628.0,7.61011]
[1727405281692,0.7639,2628.5,2628.0,7.61011]
[1727405281858,0.7639,2628.5,2628.0,8.58804577]
[1727405282059,0.0686498,2628.4,2628.0,8.58804577]
[1727405282507,0.7639,2628.4,2627.8,3.80542]
[1727405282721,0.7639,2628.4,2627.9,3.80531]
[1727405282871,0.7639,2628.4,2627.8,3.80542]
[1727405283078,0.7639,2628.4,2627.9,3.80529]
[1727405283478,0.06861051,2628.3,2627.9,3.80529]
[1727405283705,0.06861051,2628.3,2627.8,5.298922]
[1727405284509,0.7639,2628.2,2627.8,5.298922]
[1727405284819,0.7639,2628.2,2627.9,3.80529]
[1727405285012,0.7639,2628.2,2628.0,3.80516]
[1727405285977,0.7639,2628.2,2627.9,3.80531]
[1727405287517,0.7639,2628.2,2628.0,3.80515]
[1727405292013,0.06834822,2628.1,2628.0,3.80515]
[1727405297230,0.06834822,2628.1,2627.8,3.80542]
[1727405297231,0.7657,2628.0,2627.7,1.38340694]
[1727405297392,0.06834822,2628.1,2627.0,0.06627179]
[1727405297393,0.7657,2627.4,2627.0,3.87287179]
[1727405297592,0.06801306,2627.3,2626.7,2.1526203]
[1727405297891,0.06801306,2627.3,2626.7,0.79581263]
[1727405298094,0.7657,2627.2,2626.7,0.79581263]
[1727405298300,0.7657,2627.2,2626.7,4.60286263]
[1727405298602,0.06800006,2627.1,2626.7,4.60286263]
[1727405298805,0.7657,2627.2,2626.7,3.80705]
[1727405299497,0.0679863,2627.1,2626.7,3.80705]
[1727405303650,0.0679863,2627.1,2626.7,3.80694]
[1727405303972,0.7657,2627.2,2626.7,7.61388]
[1727405304254,0.06744663,2627.1,2626.8,0.761388]
[1727405304604,0.7657,2627.2,2626.8,0.761388]
[1727405304813,0.06744663,2627.1,2626.8,4.568268]
[1727405305032,0.06744663,2627.1,2626.8,0.761388]
[1727405308121,0.06744663,2627.1,2626.5,3.80729]
[1727405308122,0.7628,2627.0,2626.5,3.80729]
[1727405308320,0.7628,2627.0,2626.4,0.0376837]
[1727405308321,4.56956,2627.0,2626.4,0.0376837]
[1727405308526,0.06684209,2626.9,2626.4,0.0376837]
[1727405308819,3.87362209,2626.9,2626.4,0.0376837]
[1727405309718,5.50255746,2626.9,2626.4,0.0376837]
[1727405310118,3.87362209,2626.9,2626.4,0.0376837]
[1727405311581,0.06684209,2626.9,2626.4,0.0376837]
[1727405311763,0.06684209,2626.9,2626.4,1.53713807]
[1727405312831,0.06684209,2626.9,2626.4,5.34448807]
[1727405313025,0.06684209,2626.9,2626.5,3.80733]
[1727405316246,0.06684209,2626.9,2626.4,1.53713807]
[1727405317977,0.06684209,2626.9,2626.4,5.34458807]
[1727405331967,0.7628,2626.8,2626.4,5.34458807]
[1727405332368,0.0664566,2626.7,2626.4,5.34458807]
[1727405332775,0.7628,2626.8,2626.4,5.34458807]
[1727405332971,0.06640878,2626.6,2626.4,5.34458807]
[1727405333284,0.06637474,2626.5,2626.4,1.53713807]
[1727405333486,4.56972,2626.8,2626.4,0.0376837]
[1727405333695,0.06644283,2626.7,2626.4,0.0376837]
[1727405334098,4.56972,2626.8,2626.4,0.0376837]
[1727405334296,0.06640878,2626.6,2626.4,0.0376837]
[1727405334492,0.7628,2626.6,2626.4,0.0376837]
[1727405334696,3.07799765,2626.5,2626.4,0.0376837]
[1727405334932,0.82917474,2626.5,2626.4,0.0376837]
[1727405336997,0.06637474,2626.5,2626.4,0.0376837]
[1727405337198,0.06637474,2626.5,2626.4,3.8451737]
[1727405337539,0.06621893,2626.5,2626.4,3.8451737]
[1727405337875,0.06621893,2626.5,2626.4,4.85427661]
[1727405338136,0.06624647,2626.5,2626.4,4.85427661]
[1727405338335,0.8089,2626.8,2626.4,4.85427661]
[1727405338534,0.06621893,2626.5,2626.4,3.8451737]
[1727405338741,0.8089,2626.8,2626.4,3.8451737]
[1727405338954,0.0663122,2626.5,2626.4,3.8451737]
[1727405339171,0.8089,2626.8,2626.4,3.8451737]
[1727405339369,0.0663122,2626.5,2626.4,3.8451737]
[1727405339652,0.8089,2626.8,2626.4,4.85427661]
[1727405339946,0.8089,2626.8,2626.4,3.8451737]
[1727405340115,0.06639406,2626.7,2626.4,3.8451737]
[1727405340647,0.06633247,2626.6,2626.4,3.8451737]
[1727405340850,0.8089,2627.1,2626.5,4.69278262]
[1727405341052,0.8089,2627.1,2626.7,3.80695]
[1727405341255,0.06645487,2627.0,2626.8,3.80678]
[1727405341758,0.06645487,2627.0,2626.9,4.69219072]
[1727405342145,0.8089,2627.6,2627.1,3.80642]
[1727405343426,0.8089,2627.6,2627.2,3.80632]
[1727405343627,0.8089,2627.6,2627.3,3.80606]
[1727405344641,0.06498161,2627.5,2627.3,3.80606]
[1727405346715,0.06498161,2627.5,2627.4,3.80604]
[1727405346955,0.06498161,2627.5,2627.3,4.61536]
[1727405347149,0.8089,2627.8,2627.4,0.461536]
[1727405347652,0.8089,2627.8,2627.4,4.267526]
[1727405348364,0.06337335,2627.7,2627.4,4.267526]
[1727405348544,0.06337335,2627.7,2627.4,0.461536]
[1727405348857,2.43783537,2627.8,2627.3,3.80606]
[1727405349060,0.0633304,2627.6,2627.3,3.80606]
[1727405349280,0.0628535,2627.5,2627.3,3.80606]
[1727405349433,2.43783537,2627.8,2627.3,3.80606]
[1727405349633,0.06294908,2627.7,2627.1,4.648698]
[1727405349988,10.04899537,2627.8,2627.2,0.5457998]
[1727405350337,0.06293532,2627.7,2627.2,0.5457998]
[1727405350746,0.8207,2627.6,2627.2,0.5457998]
[1727405351230,0.06273097,2627.5,2627.2,0.5457998]
[1727405353640,0.06273097,2627.5,2627.2,4.3521198]
[1727405354242,0.06273097,2627.5,2627.3,0.90007578]
[1727405354588,0.06273097,2627.5,2627.2,4.3521198]
[1727405357777,0.06273097,2627.5,2627.1,3.80639]
[1727405358155,0.8207,2627.6,2627.1,3.80639]
[1727405358355,0.8207,2627.6,2627.2,3.80633]
[1727405358568,0.06273097,2627.5,2627.2,3.80633]
[1727405360895,0.06273097,2627.5,2627.0,3.8065]
[1727405361081,0.8207,2627.4,2626.9,0.8215]
[1727405361284,0.06258917,2627.3,2627.1,3.80645]
[1727405362695,0.8207,2627.4,2627.1,3.80645]
[1727405363397,0.06258917,2627.3,2627.1,4.649912]
[1727405364404,0.06258917,2627.3,2627.1,8.456292]
[1727405364567,0.06258917,2627.3,2627.1,4.649842]
[1727405364898,0.8207,2627.6,2627.1,4.649842]
[1727405365109,0.8207,2627.6,2627.2,0.4649842]
[1727405365403,0.8207,2627.6,2627.2,4.2712942]
[1727405365763,0.06263973,2627.5,2627.2,4.2712942]
[1727405367714,0.06263973,2627.5,2627.3,3.80616]
[1727405368807,0.8097,2627.8,2627.3,7.61223]
[1727405368963,0.06261902,2627.4,2627.3,4.69405142]
[1727405369159,0.8097,2627.8,2627.3,4.69405142]
[1727405369363,0.0631313,2627.4,2627.3,4.69405142]
[1727405369601,0.8097,2627.8,2627.3,4.69405142]
[1727405369814,0.0631313,2627.4,2627.3,3.80607]
[1727405369975,0.8097,2627.8,2627.3,3.80607]
[1727405370176,0.06267362,2627.4,2627.3,3.80607]
[1727405370370,0.8097,2627.8,2627.5,3.80588]
[1727405371504,0.8097,2627.8,2627.3,3.80607]
[1727405371712,0.8097,2627.8,2627.4,0.50736542]
[1727405372518,0.06323333,2627.7,2627.4,0.50736542]
[1727405373014,0.06318559,2627.6,2627.3,3.80607]
[1727405373317,4.6156,2627.5,2626.9,11.14665]
[1727405373619,2.43863537,2627.3,2626.7,11.4165]
[1727405373776,0.8097,2627.2,2626.5,4.60991]
[1727405373975,3.80538,2627.9,2626.4,0.0376837]
[1727405373976,0.8097,2626.8,2626.4,0.0376837]
[1727405374318,1.62893537,2626.7,2626.4,0.0376837]
[1727405374471,0.06229998,2626.6,2626.4,0.0376837]
[1727405376323,0.8097,2626.8,2626.4,0.0376837]
[1727405376617,0.06243042,2626.7,2626.4,3.8451637]
[1727405377004,0.8097,2626.8,2626.4,0.0376837]
[1727405377193,0.06252349,2626.6,2626.4,0.0376837]
[1727405377389,0.8097,2626.8,2626.4,0.0376837]
[1727405377590,0.06248944,2626.5,2626.4,0.0376837]
[1727405377831,0.8097,2626.8,2626.4,3.8451437]
[1727405377992,0.06236232,2626.5,2626.4,0.0376837]
[1727405378341,0.8097,2626.8,2626.4,0.0376837]
[1727405378633,0.06236232,2626.5,2626.4,0.0376837]
[1727405378838,0.8097,2626.8,2626.4,0.0376837]
[1727405379036,0.06234855,2626.5,2626.4,0.0376837]
[1727405379245,0.8097,2626.8,2626.4,0.0376837]
[1727405379414,0.06234855,2626.5,2626.4,0.0376837]
[1727405379603,0.8097,2626.8,2626.4,0.0376837]
[1727405379799,0.06234855,2626.5,2626.4,0.0376837]
[1727405379999,0.8097,2626.8,2626.4,0.0376837]
[1727405380224,0.06234855,2626.5,2626.4,0.0376837]
[1727405380424,0.8097,2626.8,2626.4,0.0376837]
[1727405380640,0.06236232,2626.5,2626.4,0.0376837]
[1727405380836,0.8097,2626.8,2626.4,0.0376837]
[1727405381025,0.06234855,2626.5,2626.4,0.0376837]
[1727405381199,0.8097,2626.8,2626.4,0.80296207]
[1727405381396,0.8097,2627.0,2626.5,3.80731]
[1727405381834,0.8097,2627.0,2626.6,3.80718]
[1727405383021,0.8097,2627.0,2626.7,3.80704]
[1727405383537,0.0620995,2626.9,2626.7,3.80704]
[1727405388960,0.0620995,2626.9,2626.6,0.46102721]
[1727405395337,0.0620995,2626.9,2626.5,3.80723]
[1727405398640,0.0620995,2626.9,2626.4,0.0376837]
[1727405398838,3.8689195,2626.9,2626.4,0.0376837]
[1727405400479,0.0620995,2626.9,2626.4,3.8451037]
[1727405401087,0.0620995,2626.9,2626.4,4.69063107]
[1727405402569,0.0620995,2626.9,2626.4,0.88321107]
[1727405403732,0.8077,2626.8,2626.4,0.0376837]
[1727405405382,2.43911569,2626.5,2626.4,0.0376837]
[1727405405992,0.8077,2626.5,2626.4,0.0376837]
[1727405409094,0.8077,2626.8,2626.4,0.0376837]
[1727405409250,1.19459395,2626.8,2626.4,0.0376837]
[1727405409454,2.82600964,2626.8,2626.4,0.0376837]
[1727405410393,0.8077,2626.8,2626.4,3.8451337]
[1727405410599,0.8077,2626.8,2626.5,3.80732]
[1727405413735,0.0620995,2626.9,2626.5,3.80732]
[1727405414986,0.0620995,2626.9,2626.6,3.80717]
[1727405415183,4.56494,2627.2,2626.7,0.7527]
[1727405417824,0.7586,2627.2,2626.7,0.7527]
[1727405418133,3.80648,2627.1,2626.7,0.7527]
[1727405418843,0.05928418,2627.0,2626.7,0.7527]
[1727405420870,4.56497,2627.2,2626.7,0.7527]
[1727405421036,0.05934354,2626.9,2626.7,0.7527]
[1727405421231,4.56497,2627.2,2626.7,0.7527]
[1727405421439,0.05930949,2626.8,2626.7,0.7527]
[1727405421647,4.56497,2627.2,2626.7,0.7527]
[1727405421847,0.05930949,2626.8,2626.7,0.7527]
[1727405422041,4.56497,2627.2,2626.7,0.7527]
[1727405422271,0.05930949,2626.8,2626.7,0.7527]
[1727405422470,4.56497,2627.2,2626.7,1.589416]
[1727405422654,0.05930949,2626.8,2626.7,0.7527]
[1727405422859,4.56497,2627.2,2626.7,0.7527]
[1727405423076,0.05930949,2626.8,2626.7,0.7527]
[1727405423244,4.56497,2627.2,2626.7,0.7527]
[1727405423444,0.05950542,2626.8,2626.7,0.7527]
[1727405423767,4.56497,2627.2,2626.7,0.7527]
[1727405423975,0.05929572,2626.8,2626.7,0.7527]
[1727405424144,4.56497,2627.2,2626.7,0.7527]
[1727405424361,0.05929572,2626.8,2626.7,0.7527]
[1727405424569,4.56497,2627.2,2626.7,0.7527]
[1727405424789,0.05930949,2626.8,2626.7,0.7527]
[1727405424938,4.56497,2627.2,2626.7,1.589414]
[1727405425136,0.05928195,2626.8,2626.7,0.7527]
[1727405425476,0.05926818,2626.8,2626.7,0.7527]
[1727405425685,4.56449,2627.6,2627.0,3.80659]
[1727405425852,0.7586,2627.6,2627.1,4.939539]
[1727405426174,1.63141569,2627.3,2626.8,4.55929]
[1727405426574,0.05972438,2627.2,2626.8,4.55929]
[1727405426951,1.63141569,2627.3,2626.8,4.55929]
[1727405427348,0.05980534,2627.2,2626.8,4.55929]
[1727405427550,0.05980534,2627.2,2626.8,5.395934]
[1727405427740,1.63141569,2627.3,2626.8,5.395934]
[1727405427939,3.80615,2627.4,2626.8,5.395934]
[1727405428155,0.05988606,2627.3,2626.8,5.395934]
[1727405428600,1.63141569,2627.5,2626.9,3.80665]
[1727405429003,0.05989256,2627.4,2627.0,3.80651]
[1727405429296,0.05989256,2627.4,2627.1,0.7525]
[1727405429500,4.56442,2627.6,2627.1,0.7525]
[1727405429695,0.05997106,2627.3,2627.1,0.7525]
[1727405429897,0.7586,2627.6,2627.1,5.48754984]
[1727405430103,0.7586,2627.6,2627.2,3.80633]
[1727405430571,3.80552,2627.8,2627.3,3.80618]
[1727405430572,0.8192,2627.8,2627.3,3.80618]
[1727405430774,0.8192,2627.8,2627.4,3.80604]
[1727405431003,0.8192,2628.2,2627.7,3.8055]
[1727405431203,0.8192,2628.2,2627.8,3.80546]
[1727405431404,0.8192,2628.2,2627.6,3.80565]
[1727405432466,1.63141569,2628.1,2627.6,3.80565]
[1727405432681,5.43654569,2628.1,2627.5,0.7525]
[1727405433410,0.10851066,2628.0,2627.5,0.7525]
[1727405433793,0.10851066,2628.0,2627.5,4.55837]
[1727405434423,0.10851066,2628.0,2627.5,5.4709257]
[1727405438536,0.10851066,2628.0,2627.5,1.6650557]
[1727405438743,0.10851066,2628.0,2627.6,3.80573]
[1727405439049,0.8192,2628.2,2627.7,3.80558]
[1727405439252,0.10882274,2627.9,2627.7,3.80558]
[1727405439482,0.8192,2628.2,2627.7,3.80558]
[1727405439654,0.10879638,2627.8,2627.7,3.80558]
[1727405439817,0.8192,2628.2,2627.7,4.26899855]
[1727405440155,0.10879638,2627.8,2627.7,4.26899855]
[1727405440343,0.8192,2628.2,2627.7,4.26899855]
[1727405440541,0.10879638,2627.8,2627.7,4.26899855]
[1727405440742,0.8192,2628.2,2627.7,4.26899855]
[1727405440928,0.8192,2628.2,2627.8,0.42689986]
[1727405442116,4.6241,2628.2,2627.8,0.42689986]
[1727405442536,0.8192,2628.2,2627.8,0.42689986]
[1727405443383,4.62409,2628.2,2627.8,0.42689986]
[1727405443553,0.8192,2628.2,2627.8,0.42689986]
[1727405443754,0.8192,2628.2,2627.9,0.42324799]
[1727405444850,4.62414,2628.2,2627.9,0.42324799]
[1727405445055,4.62414,2628.2,2627.5,8.36412]
[1727405445255,4.62414,2628.2,2627.6,3.80563]
[1727405448971,3.80505,2628.1,2627.5,4.55829]
[1727405449166,3.80505,2628.1,2627.5,5.748119]
[1727405452765,4.62414,2628.2,2627.5,5.748079]
[1727405453057,4.62414,2628.2,2627.6,3.80569]
[1727405457194,0.8192,2628.2,2627.7,3.80559]
[1727405459416,1.82520157,2628.2,2627.7,3.80559]
[1727405461052,5.63009157,2628.2,2627.7,3.80559]
[1727405463562,0.784,2628.1,2627.7,3.80559]
[1727405465837,3.83168839,2629.3,2627.3,11.14606]
[1727405465838,0.784,2627.7,2627.3,11.14606]
[1727405466080,3.0,2628.5,2626.9,12.25]
[1727405466081,0.784,2627.5,2626.9,4.59609]
[1727405466226,1.63141569,2627.4,2626.9,0.7894]
[1727405466568,0.784,2627.5,2627.1,3.80634]
[1727405466774,0.784,2627.5,2627.1,4.646584]
[1727405466931,0.784,2627.7,2627.1,4.646584]
[1727405467132,0.784,2627.7,2627.3,3.80617]
[1727405468236,0.784,2627.7,2627.2,0.7894]
[1727405468954,0.784,2627.7,2627.2,4.59568]
[1727405469343,0.784,2627.7,2627.2,4.59564]
[1727405471676,0.784,2627.7,2627.3,3.80617]
[1727405473772,0.784,2627.7,2627.3,7.61225]
[1727405474140,0.784,2627.7,2627.3,3.80608]
[1727405479102,0.784,2627.7,2627.3,4.265628]
[1727405479264,0.784,2627.7,2627.5,3.80587]
[1727405479888,0.7858,2627.9,2627.5,3.80587]
[1727405480057,0.7858,2627.9,2627.5,4.59087]
[1727405480256,0.7858,2628.1,2627.6,0.459087]
[1727405481579,0.7858,2628.1,2627.7,3.80559]
[1727405485413,0.7858,2628.1,2627.6,0.459087]
[1727405485613,0.7858,2628.1,2627.6,4.264807]
[1727405487118,0.7858,2628.1,2627.7,3.80557]
[1727405487410,0.7858,2628.1,2627.8,0.4264657]
[1727405487616,0.7858,2628.1,2627.7,3.80557]
[1727405490527,0.7858,2628.1,2627.6,4.264807]
[1727405494211,0.7858,2628.1,2627.6,0.459087]
[1727405494920,0.7858,2628.1,2627.6,4.264737]
[1727405496761,0.7858,2628.1,2627.5,4.59077]
[1727405496762,6.22225569,2628.1,2627.5,4.59077]
[1727405498451,0.7858,2628.1,2627.7,3.80552]
[1727405501154,0.10659292,2628.0,2627.7,3.80552]
[1727405503275,0.10659292,2628.0,2627.5,3.80577]
[1727405503647,0.10659292,2628.0,2627.6,3.80568]
[1727405504245,0.10659292,2628.0,2627.5,3.80577]
[1727405504778,0.10659292,2628.0,2627.6,3.80569]
[1727405513108,0.10659292,2628.0,2627.5,3.80577]
[1727405513517,0.10659292,2628.0,2627.5,7.61156]
[1727405513675,0.10659292,2628.0,2627.5,3.80577]
[1727405513870,0.10659292,2628.0,2627.6,3.80574]
[1727405519347,0.10659292,2628.0,2627.6,4.57450194]
[1727405520609,0.10659292,2628.0,2627.6,3.80574]
[1727405521121,0.10659292,2628.0,2627.5,7.61156]
[1727405521318,0.10659292,2628.0,2627.6,3.80564]
[1727405524440,0.10659292,2628.0,2627.7,0.07610905]
[1727405524623,0.10659292,2628.0,2627.9,6.22502569]
[1727405524813,0.10659292,2628.0,2627.9,10.89394633]
[1727405525018,0.7718,2628.7,2628.2,4.59305]
[1727405525561,0.7718,2628.7,2628.0,4.59341]
[1727405525562,4.576,2628.7,2628.0,4.59341]
[1727405525724,1.63141569,2628.6,2628.1,3.80502]
[1727405526141,1.63141569,2628.4,2628.0,5.17709613]
[1727405526337,1.63141569,2628.4,2628.0,5.17706613]
[1727405526539,1.63141569,2628.4,2628.0,3.80508]
[1727405528056,1.63141569,2628.4,2628.1,3.80498]
[1727405528638,0.10484662,2628.3,2628.1,3.80498]
[1727405529031,0.7718,2628.5,2628.1,3.80498]
[1727405529225,0.10495206,2628.2,2627.9,5.25050217]
[1727405529461,1.63141569,2628.4,2628.0,0.52505022]
[1727405529778,1.63141569,2628.4,2628.0,4.33022022]
[1727405529963,0.10498425,2628.3,2628.0,4.33022022]
[1727405530120,0.10498425,2628.3,2628.1,3.80502]
[1727405530324,0.7718,2628.5,2628.1,4.76307324]
[1727405530520,0.10499832,2628.2,2628.1,4.76307324]
[1727405531073,0.7718,2628.5,2628.1,4.76307324]
[1727405531356,0.10506268,2628.4,2628.1,4.76307324]
[1727405531561,0.10506268,2628.4,2628.1,8.56799324]
[1727405531722,0.10506268,2628.4,2628.2,0.99209435]
[1727405531924,0.10506268,2628.4,2628.2,4.79688435]
[1727405532135,0.10506268,2628.4,2628.3,3.80474]
[1727405532520,2.41341569,2629.0,2628.3,0.8279]
[1727405532721,0.782,2629.0,2628.7,0.8279]
[1727405533024,0.782,2629.4,2628.9,3.80387]
[1727405533225,0.782,2629.4,2628.9,3.80377]
[1727405535286,0.782,2629.4,2628.9,3.80381]
[1727405535693,0.782,2629.4,2629.1,3.80352]
[1727405536127,0.10277522,2629.3,2629.1,3.80352]
[1727405536424,0.10277522,2629.3,2628.9,7.60758]
[1727405536629,0.10277522,2629.3,2629.0,0.76836464]
[1727405536926,0.10277522,2629.3,2629.0,3.80372]
[1727405537628,0.10277522,2629.3,2628.9,3.80377]
[1727405537793,0.10277522,2629.3,2629.1,3.80356]
[1727405539099,0.10277522,2629.3,2629.1,4.63146]
[1727405539306,0.0376837,2629.5,2629.1,0.8279]
[1727405539709,0.10290669,2629.4,2629.1,0.8279]
[1727405539904,0.10290669,2629.4,2629.1,1.671437]
[1727405540123,0.10290669,2629.4,2628.9,8.43543]
[1727405540646,0.10290669,2629.4,2628.9,4.63166]
[1727405540815,0.10290669,2629.4,2628.9,8.43544]
[1727405541434,0.10290669,2629.4,2628.8,3.80398]
[1727405541602,2.41341569,2629.3,2628.8,3.80398]
[1727405541803,2.41341569,2629.3,2628.7,0.54358257]
[1727405542112,2.41341569,2629.3,2628.7,7.60814]
[1727405542497,1.63141569,2628.9,2628.4,0.8279]
[1727405542705,1.63141569,2628.7,2628.3,3.80473]
[1727405543100,1.63141569,2628.7,2628.2,0.8279]
[1727405543332,1.63141569,2628.5,2628.0,5.15810022]
[1727405543509,0.782,2628.4,2628.0,5.15810022]
[1727405543721,0.88465147,2628.4,2628.0,4.33020022]
[1727405543952,0.88465147,2628.4,2628.1,4.97201002]
[1727405544239,0.782,2628.4,2628.1,4.97203002]
[1727405545423,0.782,2628.4,2628.1,1.16702002]
[1727405545624,0.782,2628.4,2628.0,4.33020022]
[1727405545940,1.63141569,2628.3,2627.9,7.34]
[1727405546413,0.782,2628.4,2627.9,7.34]
[1727405546736,0.782,2628.4,2627.8,3.80541]
[1727405546940,0.10195737,2628.3,2627.8,3.80541]
[1727405547117,0.10195737,2628.3,2627.8,4.185951]
[1727405549805,3.5314583,2628.1,2627.4,11.14597]
[1727405550057,3.5314583,2627.9,2627.5,3.80587]
[1727405550201,0.8204,2627.8,2627.3,3.80618]
[1727405550404,0.92216254,2627.8,2627.3,3.80618]
[1727405550802,0.92216254,2627.8,2627.4,3.80602]
[1727405554250,0.92216254,2627.8,2627.2,3.81168795]
[1727405554434,4.72771254,2627.8,2627.2,3.81168795]
[1727405554617,5.45186708,2627.8,2627.2,3.81168795]
[1727405554818,0.1013919,2627.7,2627.2,3.81168795]
[1727405555351,0.1013919,2627.7,2627.2,3.80627]
[1727405555506,5.45186708,2627.8,2627.2,3.80627]
[1727405555850,0.1013919,2627.7,2627.2,3.80627]
[1727405556553,0.8204,2627.2,2626.7,3.80703]
[1727405556850,4.62677,2627.2,2626.6,3.80714]
[1727405557046,7.43861772,2627.1,2626.5,3.80732]
[1727405557351,3.90715942,2627.1,2626.5,5.38465437]
[1727405557911,3.90715942,2627.1,2626.6,3.8071]
[1727405557912,0.10064942,2627.1,2626.6,3.8071]
[1727405558307,0.10064942,2627.1,2626.7,3.807]
[1727405560035,0.10064942,2627.1,2626.6,1.73504581]
[1727405560254,0.10064942,2627.1,2626.7,3.807]
[1727405560554,0.10064942,2627.1,2626.7,3.80704]
[1727405560763,0.10064942,2627.1,2626.6,5.54211581]
[1727405561119,0.10064942,2627.1,2626.7,3.80696]
[1727405563159,0.10064942,2627.1,2626.7,4.74186758]